bitfinex/quotes_BTCUSD_20250124
["timestamp","ask_amount","ask_price","bid_price","bid_amount"]
[1737692804739,0.00929862,103950.0,103940.0,0.92066887]
[1737692805392,0.00929862,103950.0,103940.0,0.93027111]
[1737692805814,0.00929862,103950.0,103940.0,0.78027111]
[1737692811539,0.30951104,103950.0,103940.0,0.67445987]
[1737692811750,0.50484417,103950.0,103940.0,0.00149432]
[1737692811994,0.56734417,103950.0,103940.0,0.00149432]
[1737692812182,0.59034417,103950.0,103940.0,0.00149432]
[1737692812750,0.58834417,103950.0,103940.0,0.00149432]
[1737692812951,0.49267617,103950.0,103940.0,0.00049432]
[1737692813157,0.50567617,103950.0,103940.0,0.00249432]
[1737692814788,0.42017617,103950.0,103940.0,0.00249432]
[1737692814928,0.31351104,103950.0,103940.0,0.00249432]
[1737692815808,0.31351104,103950.0,103940.0,0.54259432]
[1737692820267,0.31351104,103950.0,103940.0,0.78076887]
[1737692820608,0.11064591,103950.0,103940.0,0.78076887]
[1737692821253,0.31351104,103950.0,103940.0,0.78076887]
[1737692821851,0.30651104,103950.0,103940.0,0.77976887]
[1737692822288,0.31251104,103950.0,103940.0,0.78076887]
[1737692822901,0.30651104,103950.0,103940.0,0.77976887]
[1737692823318,0.31551104,103950.0,103940.0,0.78076887]
[1737692824208,0.21931104,103950.0,103940.0,0.78076887]
[1737692827233,0.11264591,103950.0,103940.0,0.78076887]
[1737692827685,0.01529862,103950.0,103940.0,0.78076887]
[1737692828296,0.01529862,103950.0,103940.0,0.77976887]
[1737692828491,0.00929862,103950.0,103940.0,0.77976887]
[1737692828792,0.01129862,103950.0,103940.0,0.77976887]
[1737692829227,0.00229862,103950.0,103940.0,0.77876887]
[1737692829429,0.01129862,103950.0,103940.0,0.77976887]
[1737692830682,0.01129862,103950.0,103940.0,1.10276887]
[1737692832396,0.00929862,103950.0,103940.0,1.10276887]
[1737692832832,0.00029862,103950.0,103940.0,1.10276887]
[1737692833028,0.00029862,103950.0,103940.0,1.10376887]
[1737692837833,0.30051104,103950.0,103940.0,1.00755987]
[1737692838117,0.30051104,103950.0,103940.0,0.32549432]
[1737692838272,0.40717617,103950.0,103940.0,0.32549432]
[1737692838451,0.46967617,103950.0,103940.0,0.32549432]
[1737692839306,0.46967617,103950.0,103940.0,0.32349432]
[1737692839501,0.47067617,103950.0,103940.0,0.32449432]
[1737692839667,0.47667617,103950.0,103940.0,0.32449432]
[1737692839881,0.47067617,103950.0,103940.0,0.32349432]
[1737692840078,0.47967617,103950.0,103940.0,0.32449432]
[1737692840640,0.47867617,103950.0,103940.0,0.32449432]
[1737692841140,0.48167617,103950.0,103940.0,0.32449432]
[1737692843328,0.48162319,103950.0,103940.0,0.32449432]
[1737692844201,0.37495806,103950.0,103940.0,0.32449432]
[1737692844410,0.48162319,103950.0,103940.0,0.32449432]
[1737692846147,0.41912319,103950.0,103940.0,0.32449432]
[1737692846374,0.31245806,103950.0,103940.0,0.32449432]
[1737692847568,0.51647048,103950.0,103940.0,0.32449432]
[1737692847779,0.48162319,103950.0,103940.0,0.32449432]
[1737692847975,0.50462319,103950.0,103940.0,0.32449432]
[1737692848587,0.50162319,103950.0,103940.0,0.32449432]
[1737692849077,0.50862319,103950.0,103940.0,0.32549432]
[1737692849259,0.51082319,103950.0,103940.0,0.32449432]
[1737692850008,1.21082319,103950.0,103940.0,0.32449432]
[1737692850207,1.21982319,103950.0,103940.0,0.32549432]
[1737692851386,1.21982319,103950.0,103940.0,0.00249432]
[1737692851387,1.24700805,103950.0,103940.0,0.00249432]
[1737692853871,1.23580805,103950.0,103940.0,0.00249432]
[1737692854081,1.24700805,103950.0,103940.0,0.00249432]
[1737692856166,1.23800805,103950.0,103940.0,0.00149432]
[1737692856388,1.23100805,103950.0,103940.0,0.00049432]
[1737692856911,1.30580805,103950.0,103940.0,3.2e-07]
[1737692857094,1.33299943,103950.0,103940.0,3.2e-07]
[1737692857295,1.43034672,103950.0,103940.0,3.2e-07]
[1737692859282,0.48102412,103940.0,103930.0,5.2e-07]
[1737692859484,1.30556279,103940.0,103930.0,5.2e-07]
[1737692859885,2.80556279,103940.0,103930.0,5.2e-07]
[1737692860613,2.81156279,103940.0,103930.0,5.2e-07]
[1737692860794,2.90891008,103940.0,103930.0,5.2e-07]
[1737692861524,2.91791008,103940.0,103930.0,5.2e-07]
[1737692862696,2.90291008,103940.0,103930.0,5.2e-07]
[1737692862891,2.91411008,103940.0,103930.0,5.2e-07]
[1737692863100,2.92311008,103940.0,103930.0,5.2e-07]
[1737692863299,2.93011008,103940.0,103930.0,5.2e-07]
[1737692863711,1.43011008,103940.0,103930.0,5.2e-07]
[1737692864164,1.43953412,103940.0,103930.0,5.2e-07]
[1737692865228,1.42833412,103940.0,103930.0,5.2e-07]
[1737692865520,1.43953412,103940.0,103930.0,5.2e-07]
[1737692870854,1.34218683,103940.0,103930.0,5.2e-07]
[1737692872140,1.36172835,103940.0,103930.0,5.2e-07]
[1737692873326,1.36202718,103940.0,103930.0,5.2e-07]
[1737692874693,0.24588313,103930.0,103920.0,7.2e-07]
[1737692874944,1.03823042,103930.0,103920.0,7.2e-07]
[1737692875180,2.56317277,103930.0,103920.0,7.2e-07]
[1737692875705,2.76718519,103930.0,103920.0,7.2e-07]
[1737692876225,2.64489555,103930.0,103920.0,7.2e-07]
[1737692876437,2.65189555,103930.0,103920.0,7.2e-07]
[1737692876879,1.03643042,103930.0,103920.0,0.04900072]
[1737692877146,1.01343042,103930.0,103920.0,0.12420072]
[1737692877350,1.02243042,103930.0,103920.0,0.12420072]
[1737692878586,1.01123042,103930.0,103920.0,0.12420072]
[1737692879924,1.00423042,103930.0,103920.0,0.12420072]
[1737692880138,0.29523042,103930.0,103920.0,0.12420072]
[1737692880357,0.30123042,103930.0,103920.0,0.12420072]
[1737692880572,0.31023042,103930.0,103920.0,0.12420072]
[1737692884980,0.31052925,103930.0,103920.0,0.12420072]
[1737692885956,1.01052925,103930.0,103920.0,0.12420072]
[1737692886392,1.18244446,103930.0,103920.0,0.12420072]
[1737692886793,1.01052925,103930.0,103920.0,0.12420072]
[1737692888432,0.90386412,103930.0,103920.0,0.23039327]
[1737692888647,0.90386412,103930.0,103920.0,0.13416627]
[1737692888850,0.90386412,103930.0,103920.0,0.12420072]
[1737692889027,1.01052925,103930.0,103920.0,0.12420072]
[1737692889382,1.00452925,103930.0,103920.0,0.12420072]
[1737692889963,0.99552925,103930.0,103920.0,0.12420072]
[1737692890214,0.30452925,103930.0,103920.0,0.12420072]
[1737692890821,0.30452925,103930.0,103920.0,0.13416627]
[1737692891434,0.31152925,103930.0,103920.0,0.13416627]
[1737692892251,0.19786412,103930.0,103920.0,0.13416627]
[1737692892391,0.20386412,103930.0,103920.0,0.13416627]
[1737692892985,0.20386412,103930.0,103920.0,0.99726627]
[1737692895041,0.20386412,103930.0,103920.0,1.09349327]
[1737692896965,0.20386412,103930.0,103920.0,0.99726627]
[1737692897734,0.20386412,103930.0,103920.0,1.09349327]
[1737692898301,0.20386412,103930.0,103920.0,0.99726627]
[1737692899052,0.20386412,103930.0,103920.0,1.09349327]
[1737692899320,0.20386412,103930.0,103920.0,0.99726627]
[1737692901208,0.20386412,103930.0,103920.0,1.09349327]
[1737692902259,0.11264612,103930.0,103920.0,0.99726627]
[1737692902507,0.01529883,103930.0,103920.0,1.09349327]
[1737692904240,0.01529883,103930.0,103920.0,1.2001584]
[1737692904509,0.00029883,103940.0,103930.0,0.33784868]
[1737692905037,0.00073893,103950.0,103940.0,0.25883968]
[1737692905285,0.00073893,103950.0,103940.0,0.33783968]
[1737692906481,0.00173893,103950.0,103940.0,0.23317455]
[1737692907301,0.00173893,103950.0,103940.0,0.33983968]
[1737692908036,0.08605681,103980.0,103970.0,0.00996555]
[1737692908291,0.1835465,103980.0,103970.0,1.09444655]
[1737692908693,0.08619921,103980.0,103970.0,1.20111168]
[1737692909138,0.08619921,103980.0,103970.0,1.09444655]
[1737692909563,0.09519921,103980.0,103970.0,1.09544655]
[1737692909776,0.0091424,103980.0,103970.0,1.09444655]
[1737692910004,0.0101424,103980.0,103970.0,1.20711168]
[1737692910749,0.0161424,103980.0,103970.0,1.20811168]
[1737692911229,0.0101424,103980.0,103970.0,1.20711168]
[1737692911406,0.0101424,103980.0,103970.0,1.33745897]
[1737692911615,0.0101424,103980.0,103970.0,1.34045897]
[1737692911940,0.0001424,103980.0,103970.0,1.33445897]
[1737692912364,0.0011424,103980.0,103970.0,1.34245897]
[1737692912796,0.0011424,103980.0,103970.0,1.30945897]
[1737692912972,0.0011424,103980.0,103970.0,1.29949342]
[1737692913176,0.0011424,103980.0,103970.0,1.30945897]
[1737692914021,0.0011424,103980.0,103970.0,0.76935897]
[1737692915602,0.0011424,103980.0,103970.0,0.77900781]
[1737692915803,0.0011424,103980.0,103970.0,0.76904226]
[1737692916003,0.0011424,103980.0,103970.0,0.77900781]
[1737692918155,0.0011424,103980.0,103970.0,0.68166052]
[1737692918377,0.0011424,103980.0,103970.0,0.57499539]
[1737692919585,0.00144102,103980.0,103970.0,0.68166052]
[1737692919722,0.00144102,103980.0,103970.0,1.22176052]
[1737692920142,0.00144102,103980.0,103970.0,1.11509539]
[1737692922095,0.00144102,103980.0,103970.0,1.22176052]
[1737692922846,0.00144102,103980.0,103970.0,1.35210781]
[1737692923050,0.00029862,103990.0,103980.0,0.22793755]
[1737692923252,0.00039367,103990.0,103980.0,1.29504997]
[1737692923517,0.00029883,104000.0,103990.0,0.00996555]
[1737692923689,0.00029883,104000.0,103990.0,0.33459368]
[1737692924582,0.00029883,104000.0,103990.0,0.46494097]
[1737692924894,0.00029883,104000.0,103990.0,0.45494097]
[1737692925101,0.00029883,104000.0,103990.0,0.45994097]
[1737692926069,0.00129883,104000.0,103990.0,0.46894097]
[1737692928392,0.00129883,104000.0,103990.0,0.24192855]
[1737692928822,0.00129883,104000.0,103990.0,1.21169368]
[1737692929046,0.00129883,104000.0,103990.0,1.10502855]
[1737692930099,0.00129883,104000.0,103990.0,1.11442498]
[1737692930971,0.00129883,104000.0,103990.0,1.22109011]
[1737692931790,0.00129883,104000.0,103990.0,1.22123231]
[1737692934648,0.00129883,104000.0,103990.0,1.25102933]
[1737692934852,0.00129883,104000.0,103990.0,1.37137662]
[1737692935280,0.00129883,104000.0,103990.0,1.38137662]
[1737692935483,0.00129883,104000.0,103990.0,1.40137662]
[1737692937529,0.00129883,104000.0,103990.0,1.34837662]
[1737692942100,0.00129883,104000.0,103990.0,1.2943642]
[1737692942489,0.00129883,104000.0,103990.0,1.39171149]
[1737692943157,0.00029883,104020.0,104010.0,0.25610955]
[1737692943359,0.00029883,104020.0,104010.0,1.11920955]
[1737692943594,0.00029883,104020.0,104010.0,1.14915536]
[1737692944404,0.00029883,104020.0,104010.0,1.15115536]
[1737692944599,0.09643383,104020.0,104010.0,1.15115536]
[1737692944808,0.09643383,104020.0,104010.0,1.15515536]
[1737692945439,0.41574625,104020.0,104010.0,0.8691]
[1737692945870,0.41574625,104020.0,104010.0,1.0191]
[1737692946541,0.41574625,104020.0,104010.0,0.479]
[1737692946754,0.41574625,104020.0,104010.0,0.477]
[1737692946976,0.41774625,104020.0,104010.0,0.477]
[1737692947648,0.41774625,104020.0,104010.0,0.473]
[1737692947897,0.42374625,104020.0,104010.0,0.474]
[1737692948734,0.45081296,104020.0,104010.0,0.474]
[1737692948872,0.53041138,104020.0,104010.0,0.001]
[1737692949284,0.55677242,104020.0,104010.0,0.001]
[1737692949682,0.56589242,104020.0,104010.0,0.001]
[1737692949935,1.26589242,104020.0,104010.0,0.001]
[1737692950144,1.26989242,104020.0,104010.0,0.001]
[1737692950476,1.26589242,104020.0,104010.0,0.001]
[1737692951482,0.096153,104000.0,103990.0,0.3231422]
[1737692951710,0.30016542,104000.0,103990.0,0.4731422]
[1737692952072,0.30016542,104000.0,103990.0,0.48310775]
[1737692952898,0.30616542,104000.0,103990.0,0.48410775]
[1737692953229,0.30716542,104000.0,103990.0,0.3241422]
[1737692956107,0.30716542,104000.0,103990.0,0.33410775]
[1737692958287,0.30716542,104000.0,103990.0,0.3241422]
[1737692958473,1.12546542,104000.0,103990.0,0.0011422]
[1737692963827,0.90050029,104000.0,103990.0,0.10727075]
[1737692964040,0.80434729,104000.0,103990.0,0.97037075]
[1737692964254,0.80434729,104000.0,103990.0,1.05127075]
[1737692964671,0.10434729,104000.0,103990.0,1.05127075]
[1737692966537,0.007,104000.0,103990.0,1.05127075]
[1737692966746,0.00729862,104000.0,103990.0,1.05127075]
[1737692971519,0.30746404,104000.0,103990.0,0.95510775]
[1737692971750,0.30746404,104000.0,103990.0,0.9451422]
[1737692971970,0.30746404,104000.0,103990.0,0.8642422]
[1737692972183,0.30746404,104000.0,103990.0,0.87420775]
[1737692972706,0.20079891,104000.0,103990.0,0.97037075]
[1737692973317,0.20079891,104000.0,103990.0,0.87420775]
[1737692975039,0.20079891,104000.0,103990.0,0.97037075]
[1737692975982,0.20079891,104000.0,103990.0,0.87420775]
[1737692977198,0.20079891,104000.0,103990.0,0.97037075]
[1737692978803,0.10464591,104000.0,103990.0,0.97037075]
[1737692979011,0.20079891,104000.0,103990.0,0.97037075]
[1737692979265,0.20079891,104000.0,103990.0,1.05067075]
[1737692980180,0.10464591,104000.0,103990.0,1.05067075]
[1737692982083,0.10464591,104000.0,103990.0,1.04567075]
[1737692985305,0.20079891,104000.0,103990.0,1.04567075]
[1737692986718,0.10464591,104000.0,103990.0,1.04567075]
[1737692988357,0.00729862,104000.0,103990.0,1.04567075]
[1737692988763,0.00729862,104000.0,103990.0,1.09067075]
[1737692989195,0.00729862,104000.0,103990.0,1.09081295]
[1737692995325,0.00729862,104000.0,103990.0,1.1207932]
[1737692999921,0.00729862,104000.0,103990.0,1.11082765]
[1737693000377,0.00729862,104000.0,103990.0,1.1207932]
[1737693004176,0.00729862,104000.0,103990.0,1.09081295]
[1737693004825,0.00729862,104000.0,103990.0,1.12081551]
[1737693006295,0.00729862,104000.0,103990.0,1.09081295]
[1737693008514,0.00729862,104000.0,103990.0,1.12081772]
[1737693012075,0.00729862,104000.0,103990.0,1.22748285]
[1737693012636,0.00729862,104000.0,103990.0,1.12081772]
[1737693012861,0.00629862,104000.0,103990.0,1.14025155]
[1737693013227,0.00629862,104000.0,103990.0,1.29025155]
[1737693013645,0.00029862,104000.0,103990.0,1.29025155]
[1737693014096,0.00329862,104000.0,103990.0,1.29025155]
[1737693014337,0.00029862,104000.0,103990.0,1.29025155]
[1737693014514,0.00029862,104000.0,103990.0,1.29425155]
[1737693015243,0.00029862,104000.0,103990.0,1.29625155]
[1737693017239,0.00029862,104000.0,103990.0,1.40291668]
[1737693017646,0.00029862,104000.0,103990.0,1.54326397]
[1737693017857,0.00029883,104020.0,104010.0,0.38220955]
[1737693018082,0.00029883,104020.0,104010.0,0.51887945]
[1737693018286,0.00029883,104020.0,104010.0,1.47546894]
[1737693019672,0.00029883,104020.0,104010.0,1.47746894]
[1737693020068,0.00029883,104020.0,104010.0,1.48146894]
[1737693020275,0.00034823,104020.0,104010.0,1.48146894]
[1737693020480,0.00034823,104020.0,104010.0,1.37080381]
[1737693020680,0.00134823,104020.0,104010.0,1.28245652]
[1737693021141,0.00134823,104020.0,104010.0,1.28045652]
[1737693021344,0.00134823,104020.0,104010.0,1.29426387]
[1737693021548,0.00134823,104020.0,104010.0,1.2642591]
[1737693021755,0.00134823,104020.0,104010.0,1.29420474]
[1737693021992,0.00134823,104020.0,104010.0,1.28423919]
[1737693022197,0.00134823,104020.0,104010.0,1.2642591]
[1737693022602,0.00134823,104020.0,104010.0,1.1142591]
[1737693027770,0.19483052,104020.0,104010.0,0.88204955]
[1737693027965,0.19483052,104020.0,104010.0,0.9683862]
[1737693028162,0.19483052,104020.0,104010.0,0.8722422]
[1737693028500,0.19483052,104020.0,104010.0,0.97835175]
[1737693028725,0.09869552,104020.0,104010.0,0.97835175]
[1737693029130,0.19483052,104020.0,104010.0,0.97835175]
[1737693030022,0.09869552,104020.0,104010.0,0.97835175]
[1737693030463,0.19483052,104020.0,104010.0,0.97835175]
[1737693034124,0.19483052,104020.0,104010.0,0.8722422]
[1737693034632,0.19483052,104020.0,104010.0,0.88220775]
[1737693034784,0.19483052,104020.0,104010.0,0.97835175]
[1737693034988,0.19483052,104020.0,104010.0,0.9683862]
[1737693035680,0.19483052,104020.0,104010.0,0.97835175]
[1737693036075,0.19483052,104020.0,104010.0,0.9683862]
[1737693038137,0.19483052,104020.0,104010.0,0.8722422]
[1737693038447,0.19483052,104020.0,104010.0,0.9683862]
[1737693039161,0.19483052,104020.0,104010.0,0.97835175]
[1737693039726,0.09869552,104020.0,104010.0,0.97835175]
[1737693040359,0.09869552,104020.0,104010.0,1.02655175]
[1737693042030,0.00134823,104020.0,104010.0,1.02655175]
[1737693042245,0.00134823,104020.0,104010.0,1.10355175]
[1737693044025,0.09869552,104020.0,104010.0,1.10355175]
[1737693047599,0.30149565,104020.0,104010.0,0.8722422]
[1737693047821,0.35208437,104020.0,104010.0,0.336]
[1737693048025,0.41559565,104020.0,104010.0,0.336]
[1737693048432,0.41459565,104020.0,104010.0,0.327]
[1737693048646,0.41459565,104020.0,104010.0,0.323]
[1737693049100,0.41459565,104020.0,104010.0,0.326]
[1737693049725,0.41459565,104020.0,104010.0,0.323]
[1737693049893,0.41559565,104020.0,104010.0,0.33]
[1737693050103,0.41559565,104020.0,104010.0,0.323]
[1737693050488,0.42159565,104020.0,104010.0,0.324]
[1737693051512,0.38449565,104020.0,104010.0,0.324]
[1737693058112,0.30949565,104020.0,104010.0,0.324]
[1737693069258,0.51686078,104020.0,104010.0,0.324]
[1737693069859,0.58273509,104020.0,104010.0,0.001]
[1737693070491,1.28273509,104020.0,104010.0,0.001]
[1737693070845,1.28273509,104020.0,104000.0,0.0001422]
[1737693070846,0.119144,104010.0,104000.0,0.0001422]
[1737693071128,0.42982155,104010.0,104000.0,0.0001422]
[1737693071520,1.12982155,104010.0,104000.0,0.0001422]
[1737693073169,1.30716884,104010.0,104000.0,0.0001422]
[1737693073295,1.31316884,104010.0,104000.0,0.0011422]
[1737693073497,1.21582155,104010.0,104000.0,0.0011422]
[1737693074717,1.24259586,104010.0,104000.0,0.0011422]
[1737693075425,1.24159586,104010.0,104000.0,0.0011422]
[1737693075629,1.26089936,104010.0,104000.0,0.0011422]
[1737693075837,1.35912615,104010.0,104000.0,0.0011422]
[1737693076038,1.35912615,104010.0,104000.0,2e-07]
[1737693076039,1.44547344,104010.0,104000.0,2e-07]
[1737693076252,1.46547344,104010.0,104000.0,2e-07]
[1737693076892,0.1025,104000.0,103990.0,0.0001422]
[1737693077067,0.53610486,104000.0,103990.0,0.0001422]
[1737693078094,1.23610486,104000.0,103990.0,0.0001422]
[1737693079013,1.33945215,104000.0,103990.0,0.0011422]
[1737693079254,1.34845215,104000.0,103990.0,0.0011422]
[1737693081754,1.36845215,104000.0,103990.0,0.0011422]
[1737693084487,1.39717123,104000.0,103990.0,0.0011422]
[1737693085419,1.39717123,104000.0,103990.0,2e-07]
[1737693085625,1.43627123,104000.0,103990.0,2e-07]
[1737693086028,0.023,103990.0,103970.0,0.323]
[1737693086232,1.12984955,103980.0,103970.0,0.323]
[1737693087543,1.12984955,103980.0,103960.0,0.0797]
[1737693087544,0.119181,103970.0,103960.0,0.4027]
[1737693087800,0.91652829,103970.0,103960.0,0.323]
[1737693088039,1.04996773,103970.0,103960.0,0.323]
[1737693088460,1.15663286,103970.0,103960.0,0.323]
[1737693088669,1.04996773,103970.0,103960.0,0.323]
[1737693089280,1.11181524,103970.0,103960.0,0.323]
[1737693089856,1.12081524,103970.0,103960.0,0.323]
[1737693090703,1.06396773,103970.0,103960.0,0.323]
[1737693091146,1.06796773,103970.0,103960.0,0.323]
[1737693091340,1.04119342,103970.0,103960.0,0.323]
[1737693091751,1.06027825,103970.0,103960.0,0.323]
[1737693091957,1.0699005,103970.0,103960.0,0.323]
[1737693093726,1.18721481,103970.0,103960.0,0.323]
[1737693094172,1.18721481,103970.0,103960.0,0.3231422]
[1737693094350,1.29387994,103970.0,103960.0,0.0001422]
[1737693095079,1.20321481,103970.0,103960.0,0.0001422]
[1737693095230,1.20921481,103970.0,103960.0,0.0001422]
[1737693095457,1.19521481,103970.0,103960.0,0.0001422]
[1737693095657,1.20421481,103970.0,103960.0,0.0001422]
[1737693095889,1.2925621,103970.0,103960.0,0.0001422]
[1737693096247,1.3015621,103970.0,103960.0,0.0001422]
[1737693096863,1.2955621,103970.0,103960.0,0.0001422]
[1737693097061,1.3025621,103970.0,103960.0,0.0001422]
[1737693099053,1.40922723,103970.0,103960.0,0.0001422]
[1737693099488,1.20521481,103970.0,103960.0,0.0001422]
[1737693101817,1.09467481,103970.0,103960.0,0.0001422]
[1737693102021,1.0789405,103970.0,103960.0,0.0001422]
[1737693102792,1.0679005,103970.0,103960.0,0.0001422]
[1737693103023,1.0789405,103970.0,103960.0,0.0001422]
[1737693104263,1.0789005,103970.0,103960.0,0.0001422]
[1737693104658,1.20323359,103970.0,103960.0,0.0001422]
[1737693105279,1.1058863,103970.0,103960.0,0.0001422]
[1737693110245,1.1258863,103970.0,103960.0,0.0001422]
[1737693117895,1.15926771,103970.0,103960.0,0.0001422]
[1737693134661,1.15926771,103970.0,103960.0,0.0826422]
[1737693135669,1.00825864,103970.0,103960.0,0.1277422]
[1737693135901,0.97955156,103970.0,103960.0,0.1277422]
[1737693136394,1.06560837,103970.0,103960.0,0.2777422]
[1737693136773,1.05860837,103970.0,103960.0,0.2777422]
[1737693136993,1.06460837,103970.0,103960.0,0.2777422]
[1737693137980,1.05560837,103970.0,103960.0,0.2777422]
[1737693138510,1.06460837,103970.0,103960.0,0.2777422]
[1737693139251,0.97855156,103970.0,103960.0,0.2777422]
[1737693139592,1.07589885,103970.0,103960.0,0.2777422]
[1737693139718,0.97855156,103970.0,103960.0,0.8178422]
[1737693140522,1.04857483,103970.0,103960.0,0.8178422]
[1737693140725,0.97855156,103970.0,103960.0,0.8178422]
[1737693141968,0.97855156,103970.0,103960.0,0.6678422]
[1737693144199,0.27855156,103970.0,103960.0,0.6678422]
[1737693145289,0.20852829,103970.0,103960.0,0.6678422]
[1737693145498,0.27855156,103970.0,103960.0,0.77399775]
[1737693145704,0.20852829,103970.0,103960.0,0.77399775]
[1737693146052,0.27855156,103970.0,103960.0,0.67780775]
[1737693146473,0.27855156,103970.0,103960.0,0.6678422]
[1737693149111,0.27855156,103970.0,103960.0,0.7640322]
[1737693149876,0.11234729,103970.0,103960.0,0.77399775]
[1737693150390,0.015,103970.0,103960.0,0.77399775]
[1737693150657,0.015,103970.0,103960.0,0.84402102]
[1737693150926,0.006,103970.0,103960.0,0.84402102]
[1737693151144,0.014,103970.0,103960.0,0.84402102]
[1737693151451,0.006,103970.0,103960.0,0.84402102]
[1737693151717,0.007,103970.0,103960.0,0.84402102]
[1737693151946,0.001,103970.0,103960.0,0.77399775]
[1737693152189,4.937e-05,103980.0,103970.0,0.10614655]
[1737693152448,4.937e-05,103980.0,103970.0,0.22914655]
[1737693153703,0.00104937,103980.0,103970.0,0.22914655]
[1737693154217,0.00029862,103990.0,103980.0,0.34162087]
[1737693154474,0.00029862,103990.0,103980.0,0.88172087]
[1737693154953,0.00029862,104010.0,104000.0,0.096153]
[1737693155203,0.09764591,104010.0,104000.0,0.764653]
[1737693156225,0.19478991,104010.0,104000.0,0.764653]
[1737693157047,0.09864591,104010.0,104000.0,0.77461855]
[1737693157323,0.00129862,104010.0,104000.0,0.77461855]
[1737693158178,0.00729862,104010.0,104000.0,0.77561855]
[1737693159331,0.00729862,104010.0,104000.0,0.78506898]
[1737693172581,0.00729862,104010.0,104000.0,0.8916523]
[1737693173944,0.00129862,104010.0,104000.0,0.8906523]
[1737693174462,0.00029883,104050.0,104030.0,0.00996555]
[1737693174645,0.00029883,104050.0,104040.0,0.44614819]
[1737693174852,0.00029883,104050.0,104040.0,0.56349548]
[1737693175053,0.00029883,104060.0,104050.0,0.22817255]
[1737693175302,0.00029883,104060.0,104050.0,0.43210316]
[1737693175426,0.00029883,104060.0,104050.0,0.97220316]
[1737693175626,0.00079316,104060.0,104050.0,1.01605361]
[1737693175834,0.00029862,104070.0,104060.0,0.23096355]
[1737693176082,0.00044121,104070.0,104060.0,1.03772842]
[1737693176253,0.00044121,104070.0,104060.0,1.14431174]
[1737693176457,0.00044121,104070.0,104060.0,1.03772842]
[1737693177364,0.00044121,104070.0,104060.0,1.00799416]
[1737693177611,0.00044121,104070.0,104060.0,0.97499416]
[1737693177808,0.00044121,104070.0,104060.0,0.97799416]
[1737693178231,0.00144121,104070.0,104060.0,0.98499416]
[1737693178868,0.00144121,104070.0,104060.0,0.98199416]
[1737693179052,0.00144121,104070.0,104060.0,1.00120484]
[1737693179273,0.00144121,104070.0,104060.0,1.00520484]
[1737693180227,0.00144121,104070.0,104060.0,1.03487924]
[1737693181260,0.00144121,104070.0,104060.0,2.22117924]
[1737693183530,0.00144121,104070.0,104060.0,2.24117924]
[1737693183898,0.00144121,104070.0,104060.0,2.27417924]
[1737693184755,0.00144121,104070.0,104060.0,2.27017924]
[1737693184937,0.00044121,104070.0,104060.0,2.26817924]
[1737693185361,0.00144121,104070.0,104060.0,2.27617924]
[1737693185542,0.00144121,104070.0,104060.0,2.27117924]
[1737693186464,0.00144121,104070.0,104060.0,2.23817924]
[1737693186673,0.00244121,104070.0,104060.0,2.24517924]
[1737693186914,0.00244121,104070.0,104060.0,2.25517924]
[1737693187137,0.00244121,104070.0,104060.0,2.24517924]
[1737693187789,0.00244121,104070.0,104060.0,2.24532134]
[1737693189782,0.00029883,104090.0,104080.0,0.10604455]
[1737693190889,0.00029883,104090.0,104080.0,0.11004455]
[1737693191229,0.00029883,104090.0,104080.0,0.11904455]
[1737693191434,0.00129883,104090.0,104080.0,0.11904455]
[1737693192656,0.00129883,104090.0,104080.0,0.11504455]
[1737693193039,0.19471612,104090.0,104080.0,0.11804455]
[1737693193244,0.19471612,104090.0,104080.0,0.98114455]
[1737693193456,0.09864612,104090.0,104080.0,0.98114455]
[1737693193666,0.09964612,104090.0,104080.0,0.98814455]
[1737693194250,0.19571612,104090.0,104080.0,0.98814455]
[1737693194609,0.30229944,104090.0,104080.0,0.8821]
[1737693194813,0.41729944,104090.0,104080.0,0.8821]
[1737693196209,0.41729944,104090.0,104080.0,0.8791]
[1737693196595,0.41729944,104090.0,104080.0,0.8801]
[1737693197249,0.41529944,104090.0,104080.0,0.8631]
[1737693197510,0.096089,104070.0,104060.0,0.8632421]
[1737693197711,0.19343629,104070.0,104060.0,0.8632421]
[1737693199140,0.19943629,104070.0,104060.0,0.8642421]
[1737693199329,0.19943629,104070.0,104060.0,0.87420765]
[1737693199529,0.20043629,104070.0,104060.0,0.87420765]
[1737693202391,0.20043629,104070.0,104060.0,1.02420765]
[1737693212220,0.007,104070.0,104060.0,1.24800565]
[1737693213136,0.006,104070.0,104060.0,1.35458897]
[1737693213526,0.006,104070.0,104060.0,1.24800565]
[1737693214403,0.28851283,104090.0,104080.0,0.10604455]
[1737693214623,0.38586012,104090.0,104080.0,0.10604455]
[1737693214841,0.38586012,104090.0,104080.0,0.00996555]
[1737693215278,0.096079,104080.0,104070.0,0.44821055]
[1737693215562,0.096079,104080.0,104070.0,0.15]
[1737693215769,0.096079,104080.0,104070.0,0.246089]
[1737693215922,0.096079,104080.0,104070.0,0.25605455]
[1737693216187,0.69059844,104090.0,104070.0,0.44822955]
[1737693216406,0.88275044,104090.0,104070.0,0.44822955]
[1737693216627,0.88375044,104090.0,104070.0,0.45222955]
[1737693216852,0.49944844,104090.0,104070.0,0.45222155]
[1737693217074,0.00729883,104090.0,104080.0,0.38504455]
[1737693217295,0.00629883,104090.0,104080.0,0.49162787]
[1737693217482,0.00629883,104090.0,104080.0,0.38504455]
[1737693218286,0.00129883,104090.0,104080.0,0.375079]
[1737693218492,0.00429883,104090.0,104080.0,0.38504455]
[1737693218881,0.00429883,104090.0,104080.0,0.375079]
[1737693219089,0.00429883,104090.0,104080.0,0.38504455]
[1737693219090,0.00129883,104090.0,104080.0,0.38504455]
[1737693219549,0.00029883,104090.0,104080.0,0.38504455]
[1737693219753,0.00629883,104090.0,104080.0,0.38604455]
[1737693219947,0.00029883,104090.0,104080.0,0.38504455]
[1737693220355,0.00029883,104090.0,104080.0,0.39866362]
[1737693220759,0.00029883,104090.0,104080.0,0.40066362]
[1737693222880,0.00029883,104090.0,104080.0,1.26376362]
[1737693223860,0.09636883,104090.0,104080.0,1.244179]
[1737693224287,0.19371612,104090.0,104080.0,1.0191]
[1737693224471,0.19371612,104090.0,104080.0,1.115179]
[1737693224668,0.19371612,104090.0,104080.0,1.0191]
[1737693225924,0.19371612,104090.0,104080.0,0.8691]
[1737693226127,0.30029944,104090.0,104080.0,0.8691]
[1737693226327,0.37839944,104090.0,104080.0,0.8691]
[1737693227248,0.40139944,104090.0,104080.0,0.8671]
[1737693227706,0.40239944,104090.0,104080.0,0.327]
[1737693227855,0.40239944,104090.0,104080.0,0.323]
[1737693228285,0.40839944,104090.0,104080.0,0.324]
[1737693230589,0.42785529,104090.0,104080.0,0.324]
[1737693231303,0.43767487,104090.0,104080.0,0.324]
[1737693239229,0.20071612,104090.0,104080.0,0.474]
[1737693239671,0.20071612,104090.0,104080.0,0.5561]
[1737693239874,0.20071612,104090.0,104080.0,0.652179]
[1737693240119,0.30729944,104090.0,104080.0,0.5561]
[1737693240550,0.20071612,104090.0,104080.0,0.652179]
[1737693240751,0.20071612,104090.0,104080.0,0.5561]